Cogmind - Beta 16.1 @@@ ROGUE MODE // 2026.04.23 @ 18:14:12 Player: Hinzy Result: Destroyed by H-66 Slayer with Gauss Rifle Performance ------------- Evolutions (5) 2500 Regions Visited (7) 1400 Robots Destroyed (57) 285 Value Destroyed (1195) 1195 Prototype IDs (10) 200 Alien Tech Used (0) 0 Bonus (0) 0 TOTAL SCORE: 5580 Bonus ------- None Cogmind --------- Core Integrity 0/1000 Matter 211/300 Energy 99/100 System Corruption 10% Temperature Cool (0) Movement Core (50) Location -5/Extension Parts ------- > --- POWER (2) -------- (None) > --- PROPULSION (6) --- (None) > --- UTILITY (7) ------ System Shield > --- WEAPON (2) ------- (None) > --- INVENTORY (5) ---- Micro Fission Core Transmission Jammer ECM Suite Advanced ECM Suite Hardened Light Armor Plating Peak State ------------ > --- POWER ------------ Light Fission Core Light Fission Core > --- PROPULSION ------- Improved VTOL Module Xenon Bombardment Thruster Xenon Bombardment Thruster Nuclear Pulse Thruster > --- UTILITY ---------- Power Amplifier Small Storage Unit Weight Redist. System IFF Parser Hacking Suite System Shield System Shield > --- WEAPON ----------- Lance > --- INVENTORY -------- Light Fission Core Transmission Jammer Jamming Amplifier ECM Suite ECM Suite Advanced ECM Suite Hardened Light Armor Plating [Rating: 57] Favorites ----------- Power Light Ion Engine Engine Light Ion Engine Power Core Light Fission Core Propulsion Aluminum Leg Treads Light Treads Leg Aluminum Leg Wheel Compact Wheel Hover Unit Airjet Flight Unit Flight Unit Utility Hacking Suite Device ECM Suite Storage Small Storage Unit Processor Advanced Signal Interpreter Hackware Hacking Suite Protection Light Armor Plating Weapon Light Assault Rifle Energy Gun Pulse Rifle Ballistic Gun Light Assault Rifle Launcher Smartbomb Launcher Impact Weapon Great Maul Slashing Weapon Greatsword Piercing Weapon Lance Build | -11 -10 -9 -8 -7 -6 -5 -5 ------- Run | Yrd Mat Mat Mat Fac Fac Fac Ext Slots Evolved 10 | . . 2 2 2 2 2 . Power 1 | . . . . . . 1 . Propulsion 4 | . . 2 . 2 . . . Utility 5 | . . . 2 . 2 1 . Weapon . | . . . . . . . . Parts Attached 92 | 2 16 19 16 11 18 7 3 Power 17 | . 2 4 2 1 4 3 1 Engine 8 | . 2 4 1 1 . . . Core 9 | . . . 1 . 4 3 1 Reactor . | . . . . . . . . Propulsion 29 | . 5 9 8 2 5 . . Treads 1 | . . 1 . . . . . Leg 7 | . 4 3 . . . . . Wheel 3 | . 1 1 1 . . . . Hover 4 | . . . 4 . . . . Flight 14 | . . 4 3 2 5 . . Utility 29 | 1 3 4 5 5 8 3 . Device 15 | 1 1 2 1 3 5 2 . Storage 3 | . 1 1 . 1 . . . Processor 5 | . . 1 2 . 2 . . Hackware 5 | . . . 2 1 1 1 . Protection 1 | . 1 . . . . . . Artifact . | . . . . . . . . Weapon 17 | 1 6 2 1 3 1 1 2 Energy Gun 4 | . 1 1 . 1 . . 1 Energy Cannon . | . . . . . . . . Ballistic Gun 7 | 1 4 1 1 . . . . Ballistic Cannon . | . . . . . . . . Launcher 1 | . . . . . . . 1 Special Weapon . | . . . . . . . . Impact Weapon 3 | . 1 . . 1 1 . . Slashing Weapon 1 | . . . . 1 . . . Piercing Weapon 1 | . . . . . . 1 . Special Melee Weapon . | . . . . . . . . Unidentified Prototypes 4 | . . 1 . 1 1 . 1 Parts Lost 35 | . 3 7 9 3 3 . 10 Power 4 | . 1 1 1 . . . 1 Propulsion 18 | . 1 3 6 2 2 . 4 Utility 10 | . 1 1 2 1 1 . 4 Weapon 3 | . . 2 . . . . 1 Highest Loss Streak 6 | . 2 6 6 3 2 . 6 To Critical Strikes 1 | . . . . . . . 1 Average Backups 6 | 4 7 8 4 3 6 7 7 Power . | 1 . . . 1 1 . 1 Propulsion 1 | 2 4 3 . . . . . Utility 3 | . 1 2 2 2 5 6 5 Weapon . | 1 . . . . . . . Tool/Special . | . . . . . . . . Unused Backups 8 | . . 1 . . 4 . 3 Power 1 | . . . . . 1 . . Propulsion . | . . . . . . . . Utility 6 | . . . . . 3 . 3 Weapon . | . . . . . . . . Tool/Special 1 | . . 1 . . . . . Average Slot Usage (%) 87 | . 96 84 84 86 86 80 54 Engine 6 | . 13 9 1 7 1 . . Core 2 | . . . 7 . 4 9 7 Leg 11 | . 26 20 . . . . . Flight 16 | . . 5 19 36 34 23 12 Device 11 | . 10 9 3 7 18 13 11 Storage 8 | . 14 10 . . 6 5 3 Processor 3 | . . . 13 8 6 2 . Hackware 6 | . . . 17 10 6 16 15 Ballistic Gun 10 | . 25 12 3 . . . . Impact Weapon 3 | . . 5 9 4 4 4 . Peak Build Rating 57 | 6 8 12 29 33 54 57 57 Average Rating 23 | 5 7 9 22 26 44 53 36 On Entrance 22 | 6 6 8 12 16 32 45 57 Avg Prop Armor Cover (%) 6 | . 7 7 17 4 3 . . Naked Turns . | . . . . . . . . Heaviest Build 28 | 12 18 23 13 17 23 28 24 Greatest Support 32 | 20 20 30 32 25 31 29 29 Greatest Overweight (x) 3 | . 2 3 . . . . 3 Average Overweight (x) . | . . . . . . . . Largest Inventory Capacity 10 | 8 10 10 5 8 8 8 8 Average Capacity 7 | 8 8 9 5 5 8 8 7 Most Carried 10 | 5 10 10 5 5 8 8 8 Average Carried 6 | 4 7 8 4 3 7 6 7 Final Capacity 10 | 8 10 5 5 5 8 8 5 Final Carried 9 | 4 9 5 4 5 8 8 5 Class Distribution -------------------- 28% | Mutant 28% | Scavenger-Sprinter 18% | Scavenger-Mutant 12% | Hacker-Sprinter 6% | Hacker-Mutant 5% | Sprinter Dominant Class ---------------- Mutant | -10/Materials Scavenger-Mutant | -9/Materials Hacker-Mutant | -8/Materials Scavenger-Sprinter | -7/Factory Scavenger-Sprinter | -6/Factory Hacker-Sprinter | -5/Factory Hacker-Sprinter | -5/Extension Resources | -11 -10 -9 -8 -7 -6 -5 -5 ----------- Run | Yrd Mat Mat Mat Fac Fac Fac Ext Matter Collected 1498 | 235 358 179 118 209 369 30 . Remotely . | . . . . . . . . Salvage Created 1875 | 81 557 265 176 209 502 63 22 Parts 101 | 5 47 12 9 8 18 . 2 Haulers Intercepted 6 | . 2 . 2 1 1 . . Recyclers Shooed 3 | . 2 . . . 1 . . Parts Field Recycled . | . . . . . . . . Retrieved Matter . | . . . . . . . . Parts Self-Destructed . | . . . . . . . . Prevented . | . . . . . . . . Parts Restored . | . . . . . . . . Kills | -11 -10 -9 -8 -7 -6 -5 -5 ------- Run | Yrd Mat Mat Mat Fac Fac Fac Ext Combat Hostiles Destroyed 33 | . 15 5 4 . 4 1 4 Melee 8 | . . 2 1 . 4 1 . Guns 19 | . 15 3 1 . . . . AOE 4 | . . . . . . . 4 Classes Destroyed 11 | 2 5 2 . . 1 1 . Worker 1 | . . 1 . . . . . Tunneler 1 | 1 . . . . . . . Hauler 6 | . 2 . 2 1 1 . . Recycler 5 | 1 1 . . 2 1 . . Mechanic 1 | . . . . . 1 . . Operator 2 | . 1 1 . . . . . Watcher 8 | . 2 1 1 . 3 1 . Swarmer 20 | . 10 . 4 . 3 . 3 Grunt 9 | . 5 4 . . . . . Sentry 2 | . . 1 . . 1 . . Programmer 2 | . . . . . . 1 1 Best Kill Streak 5 | 1 5 2 4 2 3 1 4 Combat Bots Only 4 | . 3 2 4 . 2 1 4 Max Kills in Single Turn 2 | 1 1 1 1 1 1 1 2 Gunslinging . | . . . . . . . . Exploded 2 | . . . . . . . 2 Melee 1 | . . 1 1 . 1 1 . Uniques/NPCs Destroyed . | . . . . . . . . Combat | -11 -10 -9 -8 -7 -6 -5 -5 -------- Run | Yrd Mat Mat Mat Fac Fac Fac Ext Hostile Shots Fired 568 | . 105 113 91 15 73 16 155 Missed 225 | . 31 27 39 12 29 7 80 Hits 343 | . 74 86 52 3 44 9 75 Projectile 343 | . 74 86 52 3 44 9 75 Critical Strikes 7 | . . 2 2 . . 1 2 Damage Taken 4756 | . 718 1119 577 316 407 179 1440 Core 1867 | . 129 318 166 122 121 79 932 Absorbed by Shields . | . . . . . . . . Regen/Repaired (Parts) 93 | . . 85 . 8 . . . Core Remaining (%) 67 | 100 48 20 69 82 85 . . Volleys Fired 136 | 15 85 25 1 4 . . 6 Largest 2 | 1 2 2 1 1 . . 1 Hottest 65 | 20 60 63 20 63 . . 65 Shots Fired 236 | 15 163 46 1 5 . . 6 Gun 231 | 15 163 46 1 5 . . 1 Cannon . | . . . . . . . . Launcher 5 | . . . . . . . 5 Special . | . . . . . . . . Kinetic 217 | 15 160 41 1 . . . . Thermal 13 | . 3 5 . 5 . . . Explosive 5 | . . . . . . . 5 Electromagnetic 1 | . . . . . . . 1 Robot Hit Streak 11 | 5 6 11 2 3 . . 7 Robot Miss Streak 4 | 1 4 4 . 2 . . . Penetration Max . | . . . . . . . . Secondary Targets 3 | . 2 1 . . . . . Max Gunslinging Chain 1 | . 1 1 . . . . . Shots Hit Robots 203 | 10 96 45 13 7 16 9 7 Core Hits 74 | 5 38 11 2 3 8 1 6 Critical Kills 2 | . 1 . . . 1 . . Critical Parts Destroyed 6 | . 1 . 3 . . 2 . Critical Strikes 10 | . 2 . 3 1 2 2 . Destroy 2 | . 2 . . . . . . Smash 6 | . . . 3 . 1 2 . Sever 2 | . . . . 1 1 . . Melee Attacks 124 | . 1 19 24 14 41 24 1 Impact 94 | . 1 19 24 7 26 17 . Slashing 22 | . . . . 7 15 . . Piercing 8 | . . . . . . 7 1 Sneak Attacks 11 | . . 2 2 2 4 . 1 Combat Hostiles 1 | . . . . . 1 . . Follow-up Attacks . | . . . . . . . . Damage Inflicted 4745 | 84 857 737 429 369 1092 426 751 Guns 1378 | 84 853 376 8 34 . . 23 Cannons . | . . . . . . . . Explosions 628 | . . . . . . . 628 Melee 2710 | . . 361 421 335 1092 426 75 Ramming 29 | . 4 . . . . . 25 Kinetic 1278 | 84 843 343 8 . . . . Thermal 77 | . 10 33 . 34 . . . Explosive 628 | . . . . . . . 628 Electromagnetic 23 | . . . . . . . 23 Impact 1768 | . . 361 421 103 526 357 . Slashing 798 | . . . . 232 566 . . Piercing 144 | . . . . . . 69 75 Highest Corruption 10 | . 1 . . 8 . 1 10 Average Corruption 2 | . 1 . . 8 . 1 3 Corruption Purged . | . . . . . . . . Corruption Blocked . | . . . . . . . . Effects 16 | . 5 . . 5 . 1 5 Message Errors 6 | . 3 . . 1 . 1 1 Matter Fused 2 | . 1 . . 1 . . . Heat Flow Errors 2 | . 1 . . . . . 1 Parts Rejected 2 | . . . . . . . 2 Data Loss (minor) 2 | . . . . 1 . . 1 Misfires 1 | . . . . 1 . . . Alerts 1 | . . . . 1 . . . Overload Shots . | . . . . . . . . Overflow Damage 645 | . . 38 223 . 195 176 13 Projectiles . | . . . . . . . . Explosions 13 | . . . . . . . 13 Melee 632 | . . 38 223 . 195 176 . Knockbacks 4 | . . . 1 . 1 2 . Impact 4 | . . . 1 . 1 2 . Kinetic . | . . . . . . . . Secondary . | . . . . . . . . Self-Inflicted Damage 88 | . . . . . . . 88 Shots 1 | . . . . . . . 1 Rammed 3 | . . . . . . . 3 Targets Rammed 5 | . 2 . . . . . 3 Kicked 2 | . 2 . . . . . . Crushed . | . . . . . . . . Highest Temperature 309 | . 270 21 12 40 309 . 131 Average Temperature 112 | . 87 10 7 20 132 . 48 Received Heat Transfer 1074 | . 192 570 144 9 75 . 84 Effects 4 | . . . . . 4 . . Energy Bleed 1 | . . . . . 1 . . Interference 2 | . . . . . 2 . . Short Circuit 1 | . . . . . 1 . . Siege Activations . | . . . . . . . . Martial Activations . | . . . . . . . . Shielding Activations . | . . . . . . . . Robots Disrupted . | . . . . . . . . Combat Hostiles . | . . . . . . . . Robots Corrupted 7 | . . . 4 . 2 1 . Combat Hostiles 2 | . . . 2 . . . . Parts Fried 11 | . . 3 5 . 2 1 . Impact Corruptions 17 | . . 2 7 . 3 5 . Robots Melted . | . . . . . . . . Combat Hostiles . | . . . . . . . . Parts Melted . | . . . . . . . . Heat Transferred 174 | . 25 75 . 74 . . . Parts Sabotaged . | . . . . . . . . Parts Stolen . | . . . . . . . . Parts Stripped . | . . . . . . . . Power Chain Reactions . | . . . . . . . . Alert | -11 -10 -9 -8 -7 -6 -5 -5 ------- Run | Yrd Mat Mat Mat Fac Fac Fac Ext Maximum Alert Level 1 | . . . 1 . 1 . . Low Security (%) 96 | 100 100 100 86 100 89 100 100 Level 1 3 | . . . 13 . 10 . . Level 2 . | . . . . . . . . Level 3 . | . . . . . . . . Level 4 . | . . . . . . . . Level 5 . | . . . . . . . . High Security . | . . . . . . . . Max Security . | . . . . . . . . Peak Influence 318 | 5 137 70 318 142 256 171 158 Initial 142 | . . 27 12 142 2 117 70 Average 59 | 1 53 27 116 34 64 131 54 Influence Increases 2401 | 10 517 210 551 78 558 137 340 Destroy 0b10 Robot/C 660 | . 300 100 80 . 80 20 80 Destroy 0b10 Robot/NC 130 | 10 30 15 15 15 30 5 10 Destroy Leader 162 | . 58 32 16 2 28 12 14 Allied During Kill 1 | . . . . . . . 1 Successful Hack 145 | . 38 15 13 25 42 . 12 Disable Machine 75 | . . 15 15 15 30 . . Destroy Structure 103 | . 1 3 7 6 18 10 58 Partial Spotted 105 | . . . 15 15 60 15 . Lose Combat Pursuer 1020 | . 90 30 390 . 270 75 165 Influence Decreases 2243 | 10 450 247 268 384 324 234 326 Entered New Map 432 | . . 40 18 171 5 124 74 Time Decay 1428 | 10 420 185 160 114 289 110 140 Lost Part 264 | . 30 22 90 7 30 . 85 Lost Ally 27 | . . . . . . . 27 Purge Threat 92 | . . . . 92 . . . Squads Dispatched 16 | . 2 2 1 3 5 2 1 Investigation 4 | . 1 . . 1 1 1 . Extermination 4 | . . . . 2 2 . . Reinforcement 8 | . 1 2 1 . 2 1 1 Assault . | . . . . . . . . Garrison . | . . . . . . . . Intercept . | . . . . . . . . Searches Triggered . | . . . . . . . . Construction Impeded . | . . . . . . . . Haulers Reinforced . | . . . . . . . . Active Scanning Responses . | . . . . . . . . Cargo Convoy Interrupts . | . . . . . . . . Stealth | -11 -10 -9 -8 -7 -6 -5 -5 --------- Run | Yrd Mat Mat Mat Fac Fac Fac Ext Distress Signals 13 | . 2 1 3 2 1 1 3 Communications Jammed . | . . . . . . . . Distress Signals . | . . . . . . . . Times Spotted 159 | . 28 13 34 9 30 11 34 Peak Tracking Total 16 | . 4 5 16 7 8 7 16 Tactical Retreats 36 | . 5 1 9 3 10 2 6 ECM-based Alert Blocks 12 | . . . . 7 5 . . Traps | -11 -10 -9 -8 -7 -6 -5 -5 ------- Run | Yrd Mat Mat Mat Fac Fac Fac Ext Traps Triggered 8 | . 4 1 . 1 1 . 1 Indirectly . | . . . . . . . . Trap Hack Attempts . | . . . . . . . . Triggered . | . . . . . . . . Disarmed . | . . . . . . . . Reprogrammed . | . . . . . . . . Reused . | . . . . . . . . Traps Extracted . | . . . . . . . . Installed . | . . . . . . . . Triggered . | . . . . . . . . Machines | -11 -10 -9 -8 -7 -6 -5 -5 ---------- Run | Yrd Mat Mat Mat Fac Fac Fac Ext Machines Disabled 5 | . . 1 1 1 2 . . Max in Single Turn 1 | . . 1 1 1 1 . . Garrison Access 1 | . . . . . 1 . . Machines Repaired . | . . . . . . . . Machines Dismantled . | . . . . . . . . Machines Sabotaged . | . . . . . . . . Overloaded Fab Kills . | . . . . . . . . Hacking | -11 -10 -9 -8 -7 -6 -5 -5 --------- Run | Yrd Mat Mat Mat Fac Fac Fac Ext Machines Accessed 44 | . 9 5 4 10 9 2 5 Terminals 35 | . 8 3 4 7 6 2 5 Fabricators 3 | . . . . 1 2 . . Repair Stations 2 | . . 1 . 1 . . . Recycling Units 1 | . 1 . . . . . . Scanalyzers 2 | . . 1 . 1 . . . Garrison Access 1 | . . . . . 1 . . Total Hacks 115 | . 23 19 16 23 18 4 12 Successful 68 | . 16 14 11 16 7 . 4 Failed 44 | . 6 4 5 6 11 4 8 Catastrophic 4 | . . . . . 1 2 1 Database Lockouts 3 | . 1 1 . 1 . . . Manual 69 | . 23 7 12 12 7 7 1 Terminals 88 | . 20 9 16 17 10 4 12 Fabricators 9 | . . . . 2 7 . . Repair Stations 5 | . . 2 . 3 . . . Recycling Units 3 | . 3 . . . . . . Scanalyzers 9 | . . 8 . 1 . . . Garrison Access 1 | . . . . . 1 . . Terminal Hacks 22 | . 3 2 3 7 3 . 4 Part Schematic 1 | . 1 . . . . . . Robot Analysis 1 | . . . . 1 . . . Prototype ID Bank 4 | . 2 1 1 . . . . Open Door 3 | . . . . . . . 3 Open DSF 3 | . . . . 2 1 . . Level Access Points 1 | . . . . . 1 . . Terminal Index 1 | . . . . . 1 . . Scanalyzer Index 1 | . . . . 1 . . . Alert Level 1 | . . . . . . . 1 Unreport Threat 1 | . . . . 1 . . . Locate Traps 2 | . . . 1 1 . . . Recall Investigation 1 | . . . . 1 . . . Zone Layout 2 | . . 1 1 . . . . Fabricator Hacks 4 | . . . . 2 2 . . Load Schematic 2 | . . . . 1 1 . . Build 2 | . . . . 1 1 . . Repair Station Hacks 4 | . . 2 . 2 . . . Scan Component 2 | . . 1 . 1 . . . Repair 2 | . . 1 . 1 . . . Recycling Unit Hacks 1 | . 1 . . . . . . Report Inventory 1 | . 1 . . . . . . Scanalyzer 7 | . . 6 . 1 . . . Insert Component 2 | . . 2 . . . . . Analyze 2 | . . 2 . . . . . Retrieve Study 3 | . . 2 . 1 . . . Garrison Access Hacks 1 | . . . . . 1 . . Seal Access 1 | . . . . . 1 . . Unauthorized Hacks 29 | . 12 4 8 4 1 . . Terminals 25 | . 10 4 8 3 . . . Track 1 | . . . 1 . . . . Assimilate 1 | . . . 1 . . . . Botnet 12 | . 5 2 3 2 . . . Disrupt 1 | . . . 1 . . . . Operators 1 | . . . 1 . . . . Skim 9 | . 5 2 1 1 . . . Fabricators 1 | . . . . . 1 . . Liberate 1 | . . . . . 1 . . Repair Stations 1 | . . . . 1 . . . Mechanics 1 | . . . . 1 . . . Recycling Units 2 | . 2 . . . . . . Monitor 1 | . 1 . . . . . . Reject 1 | . 1 . . . . . . Scanalyzers . | . . . . . . . . Garrison Access . | . . . . . . . . Data Cores Recovered . | . . . . . . . . Used . | . . . . . . . . Hacking Detections 32 | . 6 3 4 8 6 2 3 Full Trace Events 3 | . . . . 1 1 1 . Feedback Events . | . . . . . . . . Feedback Blocked . | . . . . . . . . Robot Schematics Acquired . | . . . . . . . . Robots Built . | . . . . . . . . Authchips . | . . . . . . . . Time . | . . . . . . . . Total Robot Build Rating . | . . . . . . . . Part Schematics Acquired 3 | . 1 2 . . . . . Parts Built 3 | . . . . 2 1 . . Authchips . | . . . . . . . . Time 87 | . . . . 51 36 . . Total Part Build Rating 5 | . . . . 2 3 . . Part Studies Acquired 3 | . . 2 . 1 . . . Parts Repaired 2 | . . 1 . 1 . . . Time 52 | . . 26 . 26 . . . Parts Recycled . | . . . . . . . . Recycled Matter . | . . . . . . . . Retrieved Matter . | . . . . . . . . Retrieved Components . | . . . . . . . . Parts Scanalyzed 2 | . . 2 . . . . . Part Schematics Acquired 2 | . . 2 . . . . . Parts Damaged . | . . . . . . . . Bothacking | -11 -10 -9 -8 -7 -6 -5 -5 ------------ Run | Yrd Mat Mat Mat Fac Fac Fac Ext Used RIF Installer . | . . . . . . . . Robots Hacked . | . . . . . . . . Non-combat . | . . . . . . . . Combat . | . . . . . . . . Robot Hacks Applied . | . . . . . . . . Relay Couplers Released . | . . . . . . . . Fabnet Peak Effective % . | . . . . . . . . Robots Rewired . | . . . . . . . . Allies Hacked . | . . . . . . . . Hacks Repelled . | . . . . . . . . Allies | -11 -10 -9 -8 -7 -6 -5 -5 -------- Run | Yrd Mat Mat Mat Fac Fac Fac Ext Total Allies 3 | . . . . . . . 3 Largest Group 3 | . . . . . . . 3 Highest-Rated Group 60 | . . . . . . . 60 Highest-Rated Ally 20 | . . . . . . . 20 Total Orders . | . . . . . . . . Ally Attacks 3 | . . . . . . . 3 Total Damage 107 | . . . . . . . 107 Kills 2 | . . . . . . . 2 Allies Corrupted . | . . . . . . . . Allies Melted . | . . . . . . . . Intel | -11 -10 -9 -8 -7 -6 -5 -5 ------- Run | Yrd Mat Mat Mat Fac Fac Fac Ext Active Infowar (turns) 2824 | 19 1105 285 132 330 671 94 188 Sensors 1180 | . . 177 132 200 671 . . IFF 282 | . . . . . . 94 188 Seismic 1232 | 19 1105 108 . . . . . ECM 474 | . . . . 251 223 . . Robot Analysis Total 1 | . . . . 1 . . . Derelict Logs Recovered . | . . . . . . . . Drone Launches . | . . . . . . . . Drone Recoveries . | . . . . . . . . Exploration | -11 -10 -9 -8 -7 -6 -5 -5 ------------- Run | Yrd Mat Mat Mat Fac Fac Fac Ext Turns Passed 4234 | 69 1464 456 323 418 992 227 285 Spaces Moved 6422 | 32 996 260 573 812 2623 485 641 Core 127 | . 1 2 . . . . 124 Treads 13 | . . 13 . . . . . Legs 1126 | 32 941 153 . . . . . Wheels 54 | . 54 . . . . . . Hover 83 | . . . 83 . . . . Flight 5019 | . . 92 490 812 2623 485 517 Fastest Speed 21 | 120 100 31 31 28 21 29 29 Average Speed 46 | 120 119 95 39 30 25 29 37 Slowest Speed 260 | 120 190 260 60 34 29 29 200 Overloaded Moves . | . . . . . . . . Propulsion Burnouts . | . . . . . . . . Robots Hopped 26 | . . . 4 4 4 3 11 Potential Cave-ins . | . . . . . . . . Cave-ins Triggered 1 | . . . . 1 . . . Exploration Rate (%) 42 | 3 96 26 50 19 59 12 75 Regions Visited 7 Branch Regions 1 Pre-discovered Areas . | . . . . . . . . Known Exits Taken 4 | . . 1 1 1 1 . . Unknown Exits Taken 3 | 1 1 . . . . 1 . Scrap Searched . | . . . . . . . . Spaces Dug 40 | . 1 3 7 6 18 5 . Terrain Destroyed 73 | . 1 3 7 6 18 5 33 Melee 40 | . 1 3 7 6 18 5 . Projectile . | . . . . . . . . AOE 33 | . . . . . . . 33 Terrain Rammed . | . . . . . . . . Walls Destroyed . | . . . . . . . . Machines Disabled . | . . . . . . . . Actions | -11 -10 -9 -8 -7 -6 -5 -5 --------- Run | Yrd Mat Mat Mat Fac Fac Fac Ext Total 7204 | 51 1135 392 621 946 2867 523 669 Wait 295 | . 14 37 1 95 136 6 6 Move 6363 | 31 995 259 564 803 2614 478 619 Hop 26 | . . . 4 4 4 3 11 Pick Up 33 | . 10 5 2 4 11 1 . Fast Attach 48 | 1 5 13 12 7 6 2 2 Attach 29 | . 4 10 3 3 5 3 1 Detach 14 | . . 5 2 1 3 1 2 Swap 39 | 1 10 6 2 5 13 2 . Drop 62 | 3 9 13 6 6 19 3 3 Fire 136 | 15 85 25 1 4 . . 6 Melee 124 | . 1 19 24 14 41 24 1 Ram 3 | . . . . . . . 3 Kick 2 | . 2 . . . . . . Crush . | . . . . . . . . Escape Stasis 30 | . . . . . 15 . 15 Rewire . | . . . . . . . . Trap . | . . . . . . . . Miscellaneous . | . . . . . . . . Route ------- -11/Scrapyard -10/Materials (discovered 4 exits: *Mat x3 / [*Min]) -9/Materials -8/Materials -7/Factory (discovered 3 exits: *Fac / *Low x2) -6/Factory (discovered 5 exits: *Fac x4 / *Low) -5/Factory (discovered 2 exits: *Upp / *Ext) -5/Extension History --------- Turn | Location | Event 5 | -11/Scrapyard | Discovered new exit (range 2) 70 | -11/Scrapyard | Entered Materials 301 | -10/Materials | Build established: Mutant 452 | -10/Materials | Discovered new exit (range 8) 495 | -10/Materials | Central database locked down 798 | -10/Materials | Discovered new exit (range 11) 955 | -10/Materials | Core integrity fell below 50% 1077 | -10/Materials | Discovered new exit (range 9) 1078 | -10/Materials | Discovered new exit (range 11) 1171 | -10/Materials | Build established: Scavenger-Mutant 1534 | -10/Materials | Entered another Materials area 1534 | -9/Materials | Evolved 2 slots: Propulsion x2 1662 | -9/Materials | Build established: Mutant 1669 | -9/Materials | Core integrity fell below 50% 1686 | -9/Materials | Lost 6 parts (1p2n1u2w) 1859 | -9/Materials | Repaired Hammer 1980 | -9/Materials | Discovered new exit (range 12) 1983 | -9/Materials | Central database locked down 1990 | -9/Materials | Identified exit to Materials 1990 | -9/Materials | Entered another Materials area 1990 | -8/Materials | Evolved 2 slots: Utility x2 2153 | -8/Materials | Lost 3 parts (2n1u) 2311 | -8/Materials | Discovered new exit (range 6) 2312 | -8/Materials | Identified exit to Factory 2313 | -8/Materials | Entered Factory 2313 | -7/Factory | Evolved 2 slots: Propulsion x2 2326 | -7/Factory | Lost 6 parts (1p4n1u) 2396 | -7/Factory | Fabricated ECM Suite (x2) 2453 | -7/Factory | Repaired Flight Unit+ 2496 | -7/Factory | Discovered new exit (range 2) 2496 | -7/Factory | Identified exit to Lower Caves 2553 | -7/Factory | Crushed by falling debris 2584 | -7/Factory | Lost 3 parts (2n1u) 2621 | -7/Factory | Build established: Scavenger-Sprinter 2678 | -7/Factory | Discovered exit to Lower Caves (range 6) 2685 | -7/Factory | Central database locked down 2718 | -7/Factory | Discovered new exit (range 15) 2731 | -7/Factory | Identified exit to Factory 2731 | -7/Factory | Entered another Factory area 2731 | -6/Factory | Evolved 2 slots: Utility x2 2790 | -6/Factory | Identified exit to DSF 3073 | -6/Factory | Found Prototype Processor 3073 | -6/Factory | Identified Exp. Targeting Computer 3171 | -6/Factory | Discovered new exit (range 14) 3175 | -6/Factory | Identified exit to Lower Caves 3373 | -6/Factory | Spotted B-75 Beast 3609 | -6/Factory | Identified exit to Factory 3705 | -6/Factory | Fabricated Hacking Suite? 3723 | -6/Factory | Entered another Factory area 3723 | -5/Factory | Evolved 2 slots: Power x1, Utility x1 3747 | -5/Factory | Discovered new exit (range 4) 3747 | -5/Factory | Identified exit to Upper Caves 3896 | -5/Factory | Build established: Hacker-Sprinter 3925 | -5/Factory | Discovered new exit (range 16) 3950 | -5/Factory | Entered Extension 4012 | -5/Extension | Spotted B-75 Beast 4050 | -5/Extension | Disrupted transfer network 4065 | -5/Extension | Rescued a captive Derelict 4092 | -5/Extension | Rescued a captive Derelict 4095 | -5/Extension | Rescued a captive Derelict 4131 | -5/Extension | Spotted B-75 Beast 4144 | -5/Extension | Rescued a captive Derelict 4169 | -5/Extension | Lost 6 parts (1p3n2u) 4169 | -5/Extension | Core integrity fell below 50% 4191 | -5/Extension | Found Prototype Launcher 4191 | -5/Extension | Identified Smartbomb Launcher 4197 | -5/Extension | System corruption reached 10% 4211 | -5/Extension | Core integrity fell below 20% 4235 | -5/Extension | Destroyed by H-66 Slayer with Gauss Rifle Last Messages --------------- reinforcements to Terminal E013. 04189_ System corrupted: Heat flow error (+171). 04191_ Acquired Prototype Launcher. 04191_ Identified Smartbomb Launcher. 04194_ S-27 Virus destroyed. 04200_ P-70 Sage destroyed. 04206_ XAE9IJ|JO8 FJN8OC>CR|WZW%V 04208_ Smartbomb Launcher destroyed. 04208_ Destroyed Smartbomb Launcher. 04208_ System Shield destroyed. 04208_ Penetrated by Slug. 04211_ Slug penetrates Earth. 04213_ Slug penetrates Y-64 Sentinel. 04215_ Connecting with Terminal... >>Alert(Check) Current Alert Level: Low Security 04216_ Penetrated by Slug. 04216_ Terminal disabled. 04217_ Slug penetrates Wall. 04223_ Penetrated by Slug. Map ----- +----------------------------------------------------+ | ## ##????## #????? | | / # ###### # #????? | | # #????? | | # ###### # #????? | | #####????##### #????? | | #????????????# #????? | | ###??????? [ #????? | | ??????????######### ##### #????? | | ?????????????????# ???# #????? | | ?????????????????##""???# #????? | | ????????????????????????# #????? | | ????????????????????????# #????? | | ????????????????????????# #????? | | ????????????????????????# #????? | | ????????????????????????# #????? | | ????????????????????????# #????? | | ????????????????????????# #????? | | ????????????????????????# #????? | | ????????????????????????# #????? | | ????????????????????????# #????? | | ????????????????????????# #????? | | ????????????????????????# #????? | | ????????????????????????# #????? | | ????????????????????????# #????? | | ????????????????????????# #????? | | ????????????????????????#@#????? | | ????????????????????????# #????? | | ????????????????????????# #????? | | ????????????????????????" "????? | | ????????????????????????" "????? | | ???????????????????????? ????? | | ???????????????????????? ????? | | ??????????????????????? ! ???? | | ??????????????????????? ???? | | ??????????????????????? ???? | | ??????????????????????? = ???? | | ??????????????????????? ???? | | ???????????????????????" ! "???? | | ???????????????????????? ????? | | ????????????????????????"""????? | | ???????????????????????????????? | | ???????????????????????????????? | | ???????????????????????????????? | | | | | | | | | | | | | | | +----------------------------------------------------+ Best States ------------- Heat Dissipation 40 Energy Generation 36 Energy Capacity 370 Matter Stores 300 Matter Capacity 300 Sight Range 16 Robot Scan Range 16 Terrain Scan Density 10 ECM Strength 2 Power Amplification 20 Additional Mass Support 6 Armor Coverage 150 Evasion (%) 65 Melee Accuracy 5 Recoil Reduction 1 Offensive Hacking 20 Defensive Hacking 20 Trap Extractor Capacity 4 Item Schematics ----------------- ECM Suite | -10/Materials | Hacked Hacking Suite | -9/Materials | Scanalyzed Sml. Storage Unit | -9/Materials | Scanalyzed Robot Schematics ------------------ None Fabricated ------------ ECM Suite | x2 | -7/Factory Hacking Suite | x1 | -6/Factory Repaired ---------- Hammer | 15% | -9/Materials Flight Unit | 60% | -7/Factory Studied --------- Flight Unit | -9/Materials | Hacked Hammer | -9/Materials | Hacked Greatsword | -7/Factory | Hacked Alien Tech Used ----------------- None Achievements -------------- None Challenges ------------ None Game ------ Seed FireThrusterShockpuncher Manual? 0 Play Time 01:48:54 Cumulative 120.9 hours Start 2026.04.23 @ 13:30:57 End 2026.04.23 @ 18:14:12 Sessions 2 Manual Loads 0 Difficulty Rogue Special Mode None Game No. 85 Rogue 85 Adventurer 0 Explorer 0 Win Type - Total 0 Types 0/0/0/0/0/0/0/0/0/0 Lore% 52 Gallery% 47 Achievement% 30 Wizard Run 0 Options --------- Layout 1 ASCII 0 Keyboard 0 Movement Mouse Keybinds 0 Fullscreen 1 Font 24/Smallcaps Map View 50x35 Zoom Use 0% Tactical HUD 1 Map Filters NONE Filters NONE Steam 1 RUN: d96207a2-344a-43f2-9f31-0430caf06e9b